[Event "CCT Chesscom Classic-D2 2024"]
[Site "Online"]
[Date "2024.05.10"]
[Round "1"]
[White "Sevian, Samuel"]
[Black "Oparin, Grigoriy"]
[Result "0-1"]
[ECO "C60"]
[WhiteElo "2699"]
[BlackElo "2676"]
[Annotator "TA"]
[PlyCount "124"]
[EventDate "2024.05.08"]
[EventType "k.o."]
[EventCountry "NET"]
[SourceTitle "playchess.com"]
[Source "ChessBase"]
[SourceQuality "1"]
[TimeControl "600+2"]

{[%evp 9,124,22,34,8,21,20,20,0,18,0,0,0,0,0,0,-8,0,0,0,-5,-26,-14,-16,-12,0,0,0,-30,-32,-53,-49,-39,-40,-41,-42,-41,-42,-41,-45,-45,-41,-42,-39,-32,-31,-39,-38,-93,-97,-198,-81,-79,-83,-93,-71,-61,-66,-47,-59,-57,-52,-49,-31,-264,-242,-244,-243,-305,-304,-310,-297,-490,-261,-261,-261,-285,-306,-283,-260,-572,-597,-725,-718,-1099,-887,-1761,-1438,-1427,-1647,-6086,-5713,-12835,-12841,-29958,-29957,-29965,-29965,-29969,-29972,-29981,-29981,-29980,-29974,-29974,-29975,-29974,-29975,-29977,-29978,-29979,-29980,-29980,-29981,-29981,-29982,-29979,-29979]} 1. e4 {[%emt 0:00:02]} e5 {[%emt 0:00:05]} 2. Nf3 {[%emt 0:00:01]} Nc6 {[%emt 0:00:01]} 3. Bb5 {[%emt 0:00:05][%cal Bf1b5,Bb5a4,Ba4b3][%mdl 32]} a6 {[%emt 0:00:02]} 4. Ba4 {[%emt 0:00:00]} Nge7 {[%emt 0:00:01]} 5. O-O {[%emt 0:00:13]} Ng6 {[%emt 0:00:02]} 6. Bb3 {[%emt 0:00:15]} Be7 {[%emt 0:00:38]} 7. d4 {[%emt 0:00:06]} d6 {[%emt 0:00:25]} 8. h3 {[%emt 0:00:01] The position is equal.} O-O {[%emt 0:00:13]} (8... exd4 {looks sharper.} 9. Nxd4 Nxd4 10. Qxd4 Bf6) 9. Nc3 {[%emt 0:00:02]} Na5 {[%emt 0:00:07]} 10. Nd5 {[%emt 0:00:25]} Nxb3 {[%emt 0:01:35]} 11. axb3 {[%emt 0:00:02]} Be6 {[%emt 0:00:01]} 12. c4 {[%emt 0:00:01]} f5 {[%emt 0:01:04]} 13. dxe5 {[%emt 0:00:27]} dxe5 {[%emt 0:00:55][%cal Bd6e5,Be5f4,Bf4f3][%mdl 32]} 14. Re1 {[%emt 0:02:46]} fxe4 {[%emt 0:00:23]} 15. Nxe7+ {[%emt 0:00:14]} Qxe7 {[%emt 0:00:02]} 16. Ng5 {[%emt 0:00:25]} Nf4 {[%emt 0:01:16] Inhibits Qh5.} 17. Bxf4 {[%emt 0:00:32]} exf4 {[%emt 0:00:00]} 18. Nxe4 {[%emt 0:00:19] [#]} f3 $1 {[%emt 0:00:01]} 19. Qd2 {[%emt 0:01:51]} (19. Qd4 Rad8) 19... fxg2 {[%emt 0:00:48] And now ...h6 would win.} 20. Ng5 {[%emt 0:00:13]} Qd7 {[%emt 0:00:01]} 21. Rad1 {[%emt 0:00:37]} Qxd2 {[%emt 0:00:04]} (21... Rad8 $2 22. Qe2 Bf5 23. Rxd7 $18 (23. Kxg2 $2 Qc6+ 24. Kh2 Rxd1 $19)) 22. Rxd2 {[%emt 0:00:00]} Bf5 {[%emt 0:00:01]} 23. Kxg2 {[%emt 0:00:21]} Rae8 {[%emt 0:00:11]} 24. Rxe8 {[%emt 0:00:13]} Rxe8 $15 {[%emt 0:00:01][%mdl 4096] Endgame. KRB-KRN} 25. Kg3 {[%emt 0:00:00]} h6 {[%emt 0:00:20]} 26. Nf3 {[%emt 0:00:02]} Kf7 {[%emt 0:00:01]} 27. Rd5 {[%emt 0:00:10]} Kf6 {[%emt 0:00:05]} 28. Nd4 {[%emt 0:00:13]} (28. b4 $15) 28... Be4 $17 {[%emt 0:00:35]} 29. Rc5 {[%emt 0:00:36]} (29. Rd7 $17 {is the only way for White.}) 29... Re7 {[%emt 0:00:13]} (29... c6 $19 {and Black stays clearly on top. ...g6 is the strong threat.} 30. f3 b6) 30. f3 {[%emt 0:00:08]} b6 {[%emt 0:00:35]} 31. Rh5 {[%emt 0:00:01]} Rd7 {[%emt 0:00:41]} 32. fxe4 {[%emt 0:00:29]} Rxd4 {[%emt 0:00:01] KR-KR} 33. Rf5+ $1 {[%emt 0:00:01]} Ke6 {[%emt 0:00:04] aiming for ...Rd3+.} 34. Kf4 {[%emt 0:00:01]} g5+ $1 {[%emt 0:00:11]} 35. Ke3 {[%emt 0:00:02]} Rd1 {[%emt 0:00:01] Strongly threatening ...Rh1.} 36. Rf8 $2 {[%emt 0:00:08] White does not recover from this.} (36. h4 $1 $15) 36... Rh1 $19 {[%emt 0:00:01]} 37. Re8+ {[%emt 0:00:05]} Kd7 {[%emt 0:00:03]} 38. Rh8 {[%emt 0:00:01]} Rxh3+ {[%emt 0:00:10]} 39. Kd4 {[%emt 0:00:00]} g4 {[%emt 0:00:00][%cal Og4g3]} (39... Rxb3 40. Rh7+ Kc8 41. Rxh6 $17) 40. Kd5 $2 {[%emt 0:00:06]} (40. Rh7+ Kc6 41. e5) 40... Rd3+ {[%emt 0:00:12]} (40... Rxb3 41. Rxh6 Rxb2 42. Rh7+ Kd8 43. Rg7 $19) (40... Rh5+ $142 41. Kd4 g3 42. Rh7+ Kd8) 41. Ke5 {[%emt 0:00:02]} Rxb3 {[%emt 0:00:03]} 42. Rh7+ {[%emt 0:00:03]} Kc6 {[%emt 0:00:04]} 43. Rxh6+ {[%emt 0:00:00]} Kc5 {[%emt 0:00:01]} 44. Rh2 $2 {[%emt 0:00:03] [#]} (44. Rh7 {is a better chance.} c6 (44... Rxb2 45. Rxc7+ Kb4 46. Rc6 $15) 45. Rh2) 44... g3 $1 {[%emt 0:00:00]} (44... Kxc4 $2 45. Rc2+ Kd3 46. Rg2 $19) 45. Rc2 {[%emt 0:00:02]} Rf3 {[%emt 0:00:01] Threatens to win with ...Rf2.} 46. Ke6 {[%emt 0:00:03]} Rf2 {[%emt 0:00:03]} 47. Rc3 {[%emt 0:00:01]} g2 {[%emt 0:00:01]} (47... Rxb2 48. Rxg3 Kxc4 49. e5 $17) 48. Rg3 {[%emt 0:00:00]} Rxb2 {[%emt 0:00:02][%cal Oa6a5]} 49. e5 {[%emt 0:00:01]} a5 {[%emt 0:00:02][%cal Oa5a4] ( -> ...a4!)} 50. Kd7 {[%emt 0:00:00]} Rd2+ {[%emt 0:00:06]} (50... Kxc4 51. e6 c5 52. e7 Rd2+ 53. Ke6 $19) 51. Kxc7 {[%emt 0:00:01]} Re2 {[%emt 0:00:02] Black mates.} ({Worse is} 51... Kxc4 52. e6 $11) 52. Rg5 {[%emt 0:00:01]} a4 {[%emt 0:00:02]} 53. e6+ {[%emt 0:00:05]} Kxc4 {[%emt 0:00:01]} 54. Kd6 {[%emt 0:00:06]} a3 {[%emt 0:00:03]} 55. e7 {[%emt 0:00:00] [#]} Rxe7 $3 {[%emt 0:00:01][%mdl 512]} 56. Rg4+ {[%emt 0:00:04]} Kb5 {[%emt 0:00:03]} 57. Rg5+ {[%emt 0:00:01]} Ka6 {[%emt 0:00:03]} 58. Rxg2 {[%emt 0:00:02]} Re3 {[%emt 0:00:02]} 59. Kd5 {[%emt 0:00:04]} Kb5 {[%emt 0:00:01]} 60. Kd4 {[%emt 0:00:00]} Rh3 {[%emt 0:00:01]} 61. Rg8 {[%emt 0:00:02]} Kb4 {[%emt 0:00:00]} 62. Ra8 {[%emt 0:00:01]} b5 {[%emt 0:00:01] Weighted Error Value: White=0.66/Black=0.07 (flawless) .  Loses game:     	White=1     	---        Mistake:       	White=4     	Black=2      Inaccurate:     	White=2     	---        OK:         	White=11    	Black=19     Best:        	White=5     	Black=6      Strong:       	White=1     	Black=2} 0-1

[Event "CCT Chesscom Classic-D2 2024"]
[Site "Online"]
[Date "2024.05.10"]
[Round "1"]
[White "Sevian, Samuel"]
[Black "Oparin, Grigoriy"]
[Result "1-0"]
[ECO "C55"]
[WhiteElo "2699"]
[BlackElo "2676"]
[Annotator "RC"]
[PlyCount "75"]
[EventDate "2024.05.08"]
[EventType "k.o."]
[EventCountry "NET"]
[SourceTitle "playchess.com"]
[Source "ChessBase"]
[SourceQuality "1"]
[TimeControl "600+2"]

1. e4 {[%emt 0:00:04]} e5 {[%emt 0:00:04]} 2. Nf3 {[%emt 0:00:01]} Nc6 {[%emt 0:00:00]} 3. Bc4 {[%emt 0:00:01]} Nf6 {[%emt 0:00:02]} 4. d3 {[%emt 0:00:00]} Be7 {[%emt 0:00:01]} 5. Nc3 {[%emt 0:00:06]} O-O {[%emt 0:00:02]} 6. a4 {[%emt 0:00:01]} d6 {[%emt 0:00:06]} 7. Be3 {[%emt 0:00:01]} Nb4 {[%emt 0:00:18]} 8. Bb3 {[%emt 0:00:34]} c5 {[%emt 0:00:12]} 9. Ne2 {[%emt 0:00:08]} h6 {[%emt 0:00:29]} 10. Ng3 {[%emt 0:00:03]} a6 {[%emt 0:00:15]} 11. O-O {[%emt 0:00:45]} Re8 {[%emt 0:00:10]} 12. c3 {[%emt 0:01:34]} Nc6 {[%emt 0:00:01]} 13. Nh4 {[%emt 0:00:01]} Bf8 {[%emt 0:00:39]} 14. Ng6 {[%emt 0:01:15]} Be6 {[%emt 0:00:17]} 15. Nxf8 {[%emt 0:00:01]} Rxf8 {[%emt 0:00:01]} 16. h3 {[%emt 0:00:09]} Qb6 {[%emt 0:01:29]} 17. Bc2 {[%emt 0:00:02]} d5 {[%emt 0:01:01]} 18. f4 {[%emt 0:02:26]} d4 {[%emt 0:00:02]} 19. Bf2 {[%emt 0:00:01]} exf4 {[%emt 0:00:21]} 20. Ne2 {[%emt 0:00:02]} Rad8 {[%emt 0:00:33]} 21. Nxf4 {[%emt 0:00:34]} dxc3 {[%emt 0:00:02]} 22. bxc3 {[%emt 0:00:42]} Nxe4 {[%emt 0:00:01]} 23. Qe1 {[%emt 0:00:01]} Nxf2 {[%emt 0:00:04]} 24. Qxf2 {[%emt 0:00:00]} Ne5 {[%emt 0:00:35]} 25. Rab1 {[%emt 0:00:13]} Qc7 {[%emt 0:00:03]} 26. d4 {[%emt 0:00:10]} cxd4 {[%emt 0:00:39]} 27. cxd4 {[%emt 0:00:00]} Nc6 {[%emt 0:00:00]} 28. Rbd1 {[%emt 0:00:21]} Nb4 {[%emt 0:00:31]} 29. Bb1 {[%emt 0:00:13]} Bc4 {[%emt 0:00:07]} 30. Rfe1 {[%emt 0:00:17]} Qd6 {[%emt 0:00:20]} 31. Nh5 {[%emt 0:00:02]} Rfe8 {[%emt 0:00:47]} 32. Rxe8+ {[%emt 0:00:01]} Rxe8 {[%emt 0:00:01]} 33. Qf5 {[%emt 0:00:01]} g6 {[%emt 0:00:01]} 34. Nf6+ {[%emt 0:00:02]} Kf8 {[%emt 0:00:14]} 35. Nxe8 {[%emt 0:00:01]} Qc6 {[%emt 0:00:36]} 36. Qc5+ {[%emt 0:00:02]} Qxc5 {[%emt 0:00:06]} 37. dxc5 {[%emt 0:00:00]} Kxe8 {[%emt 0:00:02]} 38. Rd4 {[%emt 0:00:01]} 1-0

[Event "CCT Chesscom Classic-D2 2024"]
[Site "Online"]
[Date "2024.05.10"]
[Round "1"]
[White "Oparin, Grigoriy"]
[Black "Sevian, Samuel"]
[Result "1-0"]
[ECO "A06"]
[WhiteElo "2676"]
[BlackElo "2699"]
[Annotator "TA"]
[PlyCount "113"]
[EventDate "2024.05.08"]
[EventType "k.o."]
[EventCountry "NET"]
[SourceTitle "playchess.com"]
[Source "ChessBase"]
[SourceQuality "1"]
[TimeControl "600+2"]

{[%evp 48,113,18,8,0,4,25,0,4,0,81,14,32,19,25,-119,-133,-201,-198,-185,-140,-191,-26,-120,187,193,268,240,245,250,328,328,341,329,364,363,360,250,250,244,331,336,333,328,341,341,333,339,337,368,325,321,558,532,632,625,634,622,597,581,558,552,1916,1884,11622,5222,5218,5197]} 1. Nf3 {[%emt 0:00:03]} d5 {[%emt 0:00:04]} 2. e3 {[%emt 0:00:00]} c5 {[%emt 0:00:06]} 3. b3 {[%emt 0:00:01]} Nf6 {[%emt 0:00:04]} 4. Bb2 {[%emt 0:00:01]} Nc6 {[%emt 0:00:01]} 5. Bb5 {[%emt 0:00:02]} Bd7 {[%emt 0:00:01]} 6. c4 {[%emt 0:00:01] A06: Réti Opening: 1 Nf3 d5.} e6 {[%emt 0:00:19]} 7. O-O {[%emt 0:00:09]} Bd6 {[%emt 0:00:38]} 8. cxd5 {[%emt 0:00:48]} exd5 {[%emt 0:00:06]} 9. d4 {[%emt 0:00:23]} cxd4 {[%emt 0:00:02]} 10. Bxd4 $5 {[%emt 0:00:03][%mdl 4] An interesting side line.} a6 $146 {[%emt 0:00:14]} ({Predecessor:} 10... O-O 11. Bb2 Bg4 12. Be2 Bc7 13. Nc3 a6 14. Nd4 Qd6 15. g3 Bh3 16. Re1 Rfe8 {0-1 Tuomala,T (2197)-Godena,M (2507) EU-chT Seniors 50 2018 (3.1)}) 11. Bxc6 {[%emt 0:02:09]} bxc6 {[%emt 0:00:04]} 12. Ne5 {[%emt 0:00:01]} O-O {[%emt 0:00:26]} 13. Nxd7 {[%emt 0:00:03]} Nxd7 {[%emt 0:00:03]} 14. Nd2 {[%emt 0:00:06]} Re8 {[%emt 0:00:08]} 15. Rc1 {[%emt 0:00:04]} Rc8 {[%emt 0:00:44]} 16. Qg4 {[%emt 0:00:09]} Ne5 {[%emt 0:00:58]} 17. Bxe5 {[%emt 0:00:01]} Bxe5 {[%emt 0:00:00]} 18. Rfd1 {[%emt 0:00:20]} Qa5 {[%emt 0:00:38]} 19. Rc2 {[%emt 0:00:01]} Bf6 {[%emt 0:00:07]} 20. g3 {[%emt 0:00:18]} Re6 {[%emt 0:00:06]} 21. Nf3 {[%emt 0:00:22]} g6 {[%emt 0:00:24]} 22. Nd4 {[%emt 0:00:29]} h5 {[%emt 0:00:24]} 23. Qe2 {[%emt 0:00:21]} Rd6 {[%emt 0:00:22]} 24. Qf3 {[%emt 0:00:17]} Be5 {[%emt 0:00:29]} 25. Kg2 {[%emt 0:00:18]} Qb6 {[%emt 0:00:22]} 26. Qe2 {[%emt 0:00:18]} a5 {[%emt 0:00:09]} 27. Nf3 {[%emt 0:00:05]} Bf6 {[%emt 0:00:02]} 28. Rdc1 {[%emt 0:00:02]} Re8 {[%emt 0:00:13]} (28... c5 $11) 29. Qd3 {[%emt 0:00:05]} (29. Rc5 $16) 29... Re4 $11 {[%emt 0:00:08]} 30. Nd2 {[%emt 0:00:07]} Ree6 $1 {[%emt 0:00:01]} 31. Rc5 {[%emt 0:00:08] [#]} (31. h3 $11) 31... Bb2 $1 $17 {[%emt 0:00:15]} 32. R1c2 {[%emt 0:00:17]} (32. Qc2 $17 {keeps fighting.} Bxc1 33. Qxc1) 32... Ba3 $19 {[%emt 0:00:02]} 33. Qd4 {[%emt 0:00:11]} Bb4 {[%emt 0:00:24]} 34. h4 {[%emt 0:01:07]} (34. R5c4 $17 Qb5 (34... dxc4 $2 35. Qxb6 Bxd2 36. bxc4 $18) 35. Rxb4 Qxb4 36. Nf3) 34... Rd8 $2 {[%emt 0:00:46]} (34... Bxc5 $19 35. Rxc5 Qa6) 35. Nf3 {[%emt 0:00:26]} (35. R5c4 $1 $11 c5 (35... dxc4 $2 36. Qxb6 Rd5 37. Nxc4 $18) 36. Rxc5 Bxc5 37. Rxc5) 35... Re4 $2 {[%emt 0:00:29][%mdl 8192]} (35... Bxc5 $17 {stays on course.} 36. Rxc5 Red6) 36. Rxc6 $18 {[%emt 0:00:02]} Qb8 {[%emt 0:00:54]} (36... Qxc6 {was called for.} 37. Rxc6 Rxd4 38. exd4 (38. Nxd4 a4 $16) 38... Re8) 37. Qb6 {[%emt 0:00:11]} Qxb6 {[%emt 0:00:14]} 38. Rxb6 {[%emt 0:00:00]} Rd7 {[%emt 0:00:01]} 39. Nd4 {[%emt 0:00:10]} Kg7 {[%emt 0:00:05]} 40. Rb5 {[%emt 0:00:06]} Re8 {[%emt 0:00:02]} 41. Nc6 {[%emt 0:00:06]} Re4 {[%emt 0:00:33]} 42. Nxb4 {[%emt 0:00:22]} axb4 {[%emt 0:00:04]} 43. Rd2 {[%emt 0:00:01]} d4 {[%emt 0:00:02]} 44. Rxb4 {[%emt 0:00:04]} (44. Kf3 dxe3 45. fxe3 (45. Rxd7 e2 $11) 45... Rxd2 $14) 44... dxe3 {[%emt 0:00:03]} 45. Rxd7 {[%emt 0:00:01]} (45. Rxe4 exd2 46. g4 d1=Q (46... d1=B $2 47. gxh5 Bxh5 48. Kg3 $19) 47. gxh5 Qd5 48. f3 Qd1 (48... Qxh5 {leads to mate.} 49. Kg3 Rd3 50. Rg4 Qe5+ 51. Rf4 Rd2 52. Kg4 f5+ 53. Kg3 Qe1+ 54. Kh3 Qh1+ 55. Kg3 Qh2#) (48... Qd2+ {is a self mate.} 49. Kg3 Qd6+ 50. Kg2 Qd1 51. Kf2 Rd2+ 52. Kg3 Rd3 53. Rf4 Qg1+ 54. Kh3 Rd2 55. Rxf7+ Kxf7 56. hxg6+ Kg7 57. h5 Rh2#) 49. Kf2 Rd2+ (49... gxh5 50. Re8 Rd2+ 51. Kg3 Qg1+ 52. Kf4 Rd4+ 53. Re4 Qh2+ 54. Kg5 Rd5+ 55. Re5 Rxe5#) 50. Kg3 Rd3 (50... Rxa2 51. hxg6 Qg1+ 52. Kf4 Qh2+ 53. Kg4 Kxg6 54. Re6+ fxe6 55. h5+ Kf6 56. f4 Rf2 57. b4 Rxf4#) (50... Qg1+ 51. Kf4 Kf6 52. hxg6 fxg6 53. Re8 Rd4+ 54. Re4 g5+ 55. hxg5+ Qxg5#) (50... Rxa2 51. hxg6 Qd6+ 52. Rf4 fxg6 53. b4 Qd2 54. Rf7+ Kxf7 55. Kg4 Qh2 56. Kg5 Qg3+ 57. Kh6 Qxh4#) (50... Qg1+ 51. Kf4 Kf6 52. hxg6 fxg6 53. Re8 Rd4+ 54. Re4 g5+ 55. hxg5+ Qxg5#)) 45... Rxb4 {[%emt 0:00:02]} 46. fxe3 {[%emt 0:00:00]} Kf6 {[%emt 0:00:01]} 47. Rd4 {[%emt 0:00:06]} Rb7 {[%emt 0:00:03]} 48. Kf3 {[%emt 0:00:01]} Ke5 {[%emt 0:00:01]} 49. Ra4 {[%emt 0:00:02]} Rd7 $2 {[%emt 0:00:04]} (49... Rb6 50. Rc4 Rf6+ 51. Ke2 Rb6) 50. Ra5+ $18 {[%emt 0:00:01]} Ke6 {[%emt 0:00:00]} 51. b4 {[%emt 0:00:02]} Rd1 {[%emt 0:00:01]} 52. a4 {[%emt 0:00:01]} Rb1 {[%emt 0:00:01]} 53. b5 {[%emt 0:00:02]} f6 {[%emt 0:00:04]} 54. Ra6+ {[%emt 0:00:04]} Kf5 {[%emt 0:00:03]} 55. b6 {[%emt 0:00:02]} Rf1+ {[%emt 0:00:01]} 56. Ke2 {[%emt 0:00:06]} Rb1 {[%emt 0:00:01]} 57. Ra5+ {[%emt 0:00:00]} 1-0

[Event "CCT Chesscom Classic-D2 2024"]
[Site "Online"]
[Date "2024.05.10"]
[Round "1"]
[White "Van Foreest, Jorden"]
[Black "Vachier-Lagrave, Maxime"]
[Result "1/2-1/2"]
[ECO "B86"]
[WhiteElo "2665"]
[BlackElo "2732"]
[Annotator "TA"]
[PlyCount "74"]
[EventDate "2024.05.08"]
[EventType "k.o."]
[EventCountry "NET"]
[SourceTitle "playchess.com"]
[Source "ChessBase"]
[SourceQuality "1"]
[TimeControl "600+2"]

{[%evp 16,74,0,0,10,14,19,0,0,0,0,0,0,0,0,0,0,0,7,0,15,11,34,26,55,0,7,0,0,0,25,30,87,81,89,70,88,81,77,61,58,35,14,0,0,0,26,0,0,0,0,0,0,0,0,0,0,0,0,0,0]} 1. e4 {[%emt 0:00:02]} c5 {[%emt 0:00:03]} 2. Nf3 {[%emt 0:00:01]} d6 {[%emt 0:00:00]} 3. d4 {[%emt 0:00:05]} cxd4 {[%emt 0:00:00]} 4. Nxd4 {[%emt 0:00:00]} Nf6 {[%emt 0:00:00]} 5. Nc3 {[%emt 0:00:02]} a6 {[%emt 0:00:01]} 6. Bc4 {[%emt 0:00:00]} e6 {[%emt 0:00:00]} 7. a4 {[%emt 0:00:01]} Be7 {[%emt 0:00:01]} 8. O-O {[%emt 0:00:01]} O-O {[%emt 0:00:00]} 9. Be3 {[%emt 0:00:02]} Bd7 {[%emt 0:00:02]} 10. a5 {[%emt 0:00:01]} Nc6 {[%emt 0:00:02]} 11. Nxc6 {[%emt 0:00:01]} Bxc6 {[%emt 0:00:00]} 12. Re1 {[%emt 0:00:00]} Nxe4 {[%emt 0:00:24]} (12... Bxe4 $2 {perishes.} 13. Nxe4 Nxe4 14. Bb6 Nxf2 15. Bxd8 $18 (15. Bxf2 d5 $18) (15. Kxf2 Qc8 $18)) 13. Nxe4 {[%emt 0:00:03]} d5 $1 {[%emt 0:00:01]} (13... Bxe4 $2 {too greedy.} 14. Bb6 Qb8 15. Rxe4 $18) 14. Bb6 {[%emt 0:00:02]} Qe8 {[%emt 0:00:03]} 15. Bd3 {[%emt 0:00:01]} dxe4 {[%emt 0:00:02]} 16. Bxe4 {[%emt 0:00:00]} Rc8 {[%emt 0:00:08]} 17. c4 {[%emt 0:00:25]} Bb4 {[%emt 0:00:40]} 18. Re3 {[%emt 0:00:18]} Bxe4 {[%emt 0:00:01]} 19. Rxe4 {[%emt 0:00:00]} Qc6 {[%emt 0:00:00]} 20. Qd3 {[%emt 0:01:16]} (20. Rd4 $14) 20... Bc5 {[%emt 0:00:06]} 21. Bxc5 {[%emt 0:00:03]} Qxc5 {[%emt 0:00:00]} 22. Rd4 {[%emt 0:00:07]} g6 {[%emt 0:00:37]} 23. b3 {[%emt 0:00:12]} b6 {[%emt 0:00:18]} (23... Qc7 $11) 24. axb6 $16 {[%emt 0:00:07]} Qxb6 {[%emt 0:00:01]} 25. Rd6 {[%emt 0:00:09]} Rc6 {[%emt 0:00:10]} 26. Rxc6 {[%emt 0:00:06]} Qxc6 {[%emt 0:00:00][%mdl 4096] Endgame. KQR-KQR} 27. h4 {[%emt 0:00:03][%cal Oh4h5]} h5 {[%emt 0:00:10]} 28. b4 {[%emt 0:00:21]} Rb8 {[%emt 0:00:02]} 29. Qc3 {[%emt 0:00:14]} Qb7 {[%emt 0:00:14]} 30. Rd1 {[%emt 0:00:04] [#] Strongly threatening c5.} e5 {[%emt 0:00:27]} (30... Qxb4 $2 {loses.} 31. Rd8+ Rxd8 32. Qxb4 $18) 31. Rb1 {[%emt 0:00:41]} Qe4 {[%emt 0:00:07][%csl LRb1,LRh4] The position is equal.} 32. Ra1 {[%emt 0:00:03]} Qd4 {[%emt 0:00:15]} 33. Qxd4 {[%emt 0:00:01]} exd4 {[%emt 0:00:01]} 34. Rb1 {[%emt 0:01:07]} Rc8 {[%emt 0:00:36]} 35. c5 {[%emt 0:00:20] aiming for Kf1.} a5 {[%emt 0:00:00]} 36. bxa5 {[%emt 0:00:16] [#] Black must now prevent a6.} Rxc5 {[%emt 0:00:01]} 37. Rd1 {[%emt 0:00:08]} Rxa5 {[%emt 0:00:02] Weighted Error Value: White=0.07 (flawless) /Black=0.08 (flawless) .  Mistake:       	White=1     	Black=1      Inaccurate:     	White=1     	Black=2      OK:         	White=10    	Black=13     Best:        	White=2     	Black=1      Strong:       	---       	Black=1} 1/2-1/2

[Event "CCT Chesscom Classic-D2 2024"]
[Site "Online"]
[Date "2024.05.10"]
[Round "1"]
[White "Van Foreest, Jorden"]
[Black "Vachier-Lagrave, Maxime"]
[Result "1-0"]
[ECO "B86"]
[WhiteElo "2665"]
[BlackElo "2732"]
[Annotator "ChessBase"]
[PlyCount "119"]
[EventDate "2024.05.08"]
[EventType "k.o."]
[EventCountry "NET"]
[SourceTitle "playchess.com"]
[Source "ChessBase"]
[SourceQuality "1"]
[TimeControl "600+2"]

1. e4 {[%emt 0:00:05]} c5 {[%emt 0:00:04]} 2. Nf3 {[%emt 0:00:02]} d6 {[%emt 0:00:01]} 3. d4 {[%emt 0:00:02]} cxd4 {[%emt 0:00:00]} 4. Nxd4 {[%emt 0:00:00]} Nf6 {[%emt 0:00:01]} 5. Nc3 {[%emt 0:00:01]} a6 {[%emt 0:00:00]} 6. Bc4 {[%emt 0:00:00]} e6 {[%emt 0:00:01]} 7. a4 {[%emt 0:00:00]} Be7 {[%emt 0:00:15]} 8. O-O {[%emt 0:00:03]} Bd7 {[%emt 0:00:01]} 9. a5 {[%emt 0:00:34]} Nc6 {[%emt 0:00:08]} 10. Nxc6 {[%emt 0:00:06]} Bxc6 {[%emt 0:00:00]} 11. Re1 {[%emt 0:00:01]} O-O {[%emt 0:00:11]} 12. Be3 {[%emt 0:00:03]} Rc8 {[%emt 0:00:14]} 13. Bf1 {[%emt 0:00:05]} Qc7 {[%emt 0:00:22]} 14. Bd4 {[%emt 0:00:10]} Nd7 {[%emt 0:00:33]} 15. b4 {[%emt 0:00:30]} Bf6 {[%emt 0:00:07]} 16. Rb1 {[%emt 0:00:42]} Rfd8 {[%emt 0:00:13]} 17. Rb3 {[%emt 0:00:04]} d5 {[%emt 0:01:11]} 18. Bxf6 {[%emt 0:00:50]} Nxf6 {[%emt 0:00:00]} 19. e5 {[%emt 0:00:35]} Ne4 {[%emt 0:00:02]} 20. Qd4 {[%emt 0:00:00]} f6 {[%emt 0:00:20]} 21. exf6 {[%emt 0:00:08]} e5 {[%emt 0:00:02]} 22. Qb6 {[%emt 0:01:05]} Qxb6 {[%emt 0:00:44]} 23. axb6 {[%emt 0:00:00]} Nxc3 {[%emt 0:00:06]} 24. f7+ {[%emt 0:00:06]} Kxf7 {[%emt 0:00:01]} 25. Rxc3 {[%emt 0:00:00]} e4 {[%emt 0:00:22]} 26. Rd1 {[%emt 0:00:32]} Rd6 {[%emt 0:01:53]} 27. Rc5 {[%emt 0:00:22]} Ke7 {[%emt 0:00:21]} 28. f3 {[%emt 0:00:06]} exf3 {[%emt 0:00:17]} 29. gxf3 {[%emt 0:00:07]} Bd7 {[%emt 0:00:01]} 30. Re1+ {[%emt 0:02:03]} Kf6 {[%emt 0:00:27]} 31. Bd3 {[%emt 0:00:28]} Rxb6 {[%emt 0:00:40]} 32. Rxd5 {[%emt 0:00:01]} Be6 {[%emt 0:00:00]} 33. Rd4 {[%emt 0:00:00]} g6 {[%emt 0:00:07]} 34. Rf4+ {[%emt 0:00:46]} Kg7 {[%emt 0:00:06]} 35. Kf2 {[%emt 0:00:07]} Rd6 {[%emt 0:00:09]} 36. Re5 {[%emt 0:00:04]} Rc7 {[%emt 0:00:06]} 37. h4 {[%emt 0:00:02]} Bf7 {[%emt 0:00:02]} 38. Ke3 {[%emt 0:00:07]} Rf6 {[%emt 0:00:22]} 39. Rd4 {[%emt 0:00:08]} b5 {[%emt 0:00:12]} 40. Be4 {[%emt 0:00:06]} Bc4 {[%emt 0:00:07]} 41. h5 {[%emt 0:00:13]} Bf7 {[%emt 0:00:07]} 42. hxg6 {[%emt 0:00:12]} Bxg6 {[%emt 0:00:00]} 43. Rc5 {[%emt 0:00:21]} Re7 {[%emt 0:00:01]} 44. Rcd5 {[%emt 0:00:03]} Bxe4 {[%emt 0:00:22]} 45. fxe4 {[%emt 0:00:03]} Rc6 {[%emt 0:00:03]} 46. Rc5 {[%emt 0:00:06]} Rg6 {[%emt 0:00:07]} 47. Rc8 {[%emt 0:00:08]} h5 {[%emt 0:00:03]} 48. Rdd8 {[%emt 0:00:02]} Kh6 {[%emt 0:00:14]} 49. Rh8+ {[%emt 0:00:02]} Rh7 {[%emt 0:00:02]} 50. Rxh7+ {[%emt 0:00:09]} Kxh7 {[%emt 0:00:00]} 51. Kf4 {[%emt 0:00:00]} h4 {[%emt 0:00:03]} 52. Rc3 {[%emt 0:00:03]} Kh6 {[%emt 0:00:03]} 53. e5 {[%emt 0:00:00]} Rg1 {[%emt 0:00:16]} 54. e6 {[%emt 0:00:02]} Kg6 {[%emt 0:00:12]} 55. Re3 {[%emt 0:00:06]} Rf1+ {[%emt 0:00:00]} 56. Ke5 {[%emt 0:00:01]} Rd1 {[%emt 0:00:01]} 57. Rf3 {[%emt 0:00:01]} Kg5 {[%emt 0:00:06]} 58. e7 {[%emt 0:00:03]} Re1+ {[%emt 0:00:01]} 59. Kd6 {[%emt 0:00:00]} Kg4 {[%emt 0:00:00]} 60. Rf8 {[%emt 0:00:01]} 1-0